bitfinex-derivatives/quotes_ETHF0:USTF0_20250323
["timestamp","ask_amount","ask_price","bid_price","bid_amount"]
[1742713380929,2.28868831,2003.6,2003.5,2.6098]
[1742713389631,2.28868831,2003.6,2003.5,1.9723]
[1742713389837,2.96188831,2003.6,2003.5,1.9723]
[1742713390935,2.96188831,2003.6,2003.5,1.3061]
[1742713395034,0.99848,2003.4,2003.3,1.3577]
[1742713395249,0.99848,2003.4,2003.3,2.7435]
[1742713395640,2.31798,2003.4,2003.3,2.7435]
[1742713399741,2.31798,2003.4,2003.3,3.26511397]
[1742713402351,2.31798,2003.4,2003.3,3.26558368]
[1742713404248,2.31798,2003.4,2003.3,2.7435]
[1742713404448,2.31798,2003.4,2003.3,3.2656206]
[1742713404849,2.31798,2003.4,2003.3,3.26563451]
[1742713406448,2.31798,2003.4,2003.3,3.26557195]
[1742713408256,2.31798,2003.4,2003.3,2.7435]
[1742713408452,2.31798,2003.4,2003.3,3.26555419]
[1742713410055,2.31798,2003.4,2003.3,2.7435]
[1742713410267,2.31798,2003.4,2003.3,3.26556804]
[1742713411567,2.31798,2003.4,2003.3,2.59566804]
[1742713411860,2.31798,2003.4,2003.3,1.90786804]
[1742713412059,2.31798,2003.4,2003.3,1.90790131]
[1742713412558,2.31798,2003.4,2003.3,1.90796433]
[1742713413760,2.31798,2003.4,2003.3,1.90797131]
[1742713415861,0.99858,2003.2,2003.1,0.67387831]
[1742713416054,0.99858,2003.2,2003.1,2.54285358]
[1742713416563,2.27508,2003.2,2003.1,2.54285358]
[1742713417960,2.27508,2003.2,2003.1,2.02057831]
[1742713418159,2.27508,2003.2,2003.1,1.35417831]
[1742713445404,0.99868,2003.0,2002.9,0.6763]
[1742713445602,0.99868,2003.0,2002.9,1.19909094]
[1742713446695,2.33708,2003.0,2002.9,2.47549094]
[1742713447007,2.33708,2003.0,2002.9,2.4756664]
[1742713447704,2.33708,2003.0,2002.9,2.47566095]
[1742713449104,2.33708,2003.0,2002.9,2.47563367]
[1742713451004,2.33708,2003.0,2002.9,1.9527]
[1742713451212,2.33708,2003.0,2002.9,2.47558312]
[1742713451810,2.33708,2003.0,2002.9,1.79928312]
[1742713452112,2.99958,2003.0,2002.9,1.79928312]
[1742713452608,2.99958,2003.0,2002.9,1.2764]
[1742713455803,2.99958,2003.0,2002.7,3.21527831]
[1742713455804,0.99878,2002.8,2002.7,3.21527831]
[1742713456406,2.39688,2002.8,2002.7,3.21527831]
[1742713458710,5.60468,2002.8,2002.7,0.00747831]
[1742713459719,5.60468,2002.8,2002.4,1.3434]
[1742713459720,0.99893,2002.5,2002.4,1.3434]
[1742713460308,3.2078,2002.8,2002.4,1.3434]
[1742713460512,0.99893,2002.5,2002.4,1.3434]
[1742713464114,2.32191,2002.6,2002.4,2.34236]
[1742713464320,2.32191,2002.6,2002.5,1.3106]
[1742713471627,0.99903,2002.3,2002.2,0.00747831]
[1742713471823,0.99903,2002.3,2002.2,1.1995136]
[1742713472620,0.99901,2002.4,2002.2,1.1995136]
[1742713472819,0.99901,2002.4,2002.2,0.67807831]
[1742713473017,2.37333831,2002.5,2002.3,2.98031]
[1742713473217,2.37333831,2002.5,2002.4,1.2811]
[1742713473619,2.37333831,2002.5,2002.4,1.9517]
[1742713475931,2.37333831,2002.5,2002.4,1.2811]
[1742713476125,3.06143831,2002.5,2002.4,1.2811]
[1742713476328,3.75293831,2002.5,2002.4,1.2811]
[1742713480025,1.37437831,2002.5,2002.4,2.28008]
[1742713480422,2.37330831,2002.5,2002.4,2.28008]
[1742713481540,0.00747831,2002.5,2002.4,2.28008]
[1742713481726,0.00747831,2002.5,2002.4,2.80205172]
[1742713482638,0.00747831,2002.5,2002.4,2.80212841]
[1742713482838,0.00747831,2002.5,2002.4,2.80212833]
[1742713483039,0.00747831,2002.5,2002.4,3.44382703]
[1742713485434,0.9987,2003.0,2002.5,2.49728]
[1742713485629,1.3124,2003.0,2002.9,0.99873]
[1742713485829,1.3124,2003.0,2002.9,1.52090596]
[1742713486334,1.3937,2003.2,2003.0,0.99865]
[1742713486535,2.39980831,2003.2,2003.1,2.0651]
[1742713488039,1.40117831,2003.2,2003.1,3.06373]
[1742713489748,0.00747831,2003.2,2003.1,3.06373]
[1742713493443,1.31347831,2003.2,2003.1,3.06373]
[1742713506161,0.00747831,2003.2,2003.1,3.06373]
[1742713510358,0.00747831,2003.2,2003.1,3.58502617]
[1742713510558,0.00747831,2003.2,2003.1,3.58502517]
[1742713512061,0.00747831,2003.2,2003.1,3.58537763]
[1742713515563,0.00747831,2003.2,2003.1,4.22857977]
[1742713517659,0.00747831,2003.2,2003.1,4.22865624]
[1742713518159,0.00747831,2003.2,2003.1,4.22865832]
[1742713518859,1.37517831,2003.2,2003.1,4.22865832]
[1742713519566,1.37517831,2003.2,2003.1,3.70602461]
[1742713519768,1.37517831,2003.2,2003.1,4.22868741]
[1742713521765,1.37517831,2003.2,2003.1,4.22863004]
[1742713522564,1.37517831,2003.2,2003.1,7.43643004]
[1742713523561,1.37517831,2003.2,2003.1,6.91382461]
[1742713523767,1.37517831,2003.2,2003.1,7.43638772]
[1742713525573,1.37517831,2003.2,2003.1,7.43638441]
[1742713526066,1.37517831,2003.2,2003.1,7.4363987]
[1742713527462,1.37517831,2003.2,2003.1,4.2285987]
[1742713527664,1.37517831,2003.2,2003.1,7.43639872]
[1742713529871,1.37517831,2003.2,2003.1,7.43642462]
[1742713530369,1.37517831,2003.2,2003.1,4.22862462]
[1742713530580,1.37517831,2003.2,2003.1,7.43642462]
[1742713531671,1.37517831,2003.2,2003.1,7.43643295]
[1742713532084,1.37517831,2003.2,2003.1,4.22863295]
[1742713532374,1.37517831,2003.2,2003.1,7.43643295]
[1742713534080,1.37517831,2003.2,2003.1,6.91382461]
[1742713534277,1.37517831,2003.2,2003.1,7.4364665]
[1742713535679,1.37517831,2003.2,2003.1,6.91382461]
[1742713535982,1.37517831,2003.2,2003.1,7.436481]
[1742713536163,1.37517831,2003.2,2003.1,4.228681]
[1742713536371,1.37517831,2003.2,2003.1,7.436481]
[1742713537679,1.37517831,2003.2,2003.1,7.43656002]
[1742713540282,1.37517831,2003.2,2003.1,7.43628039]
[1742713541885,1.37517831,2003.2,2003.1,7.43631488]
[1742713542276,1.37517831,2003.2,2003.1,7.43632589]
[1742713543183,1.37517831,2003.2,2003.1,7.4363173]
[1742713543885,1.37517831,2003.2,2003.1,7.43633093]
[1742713549291,1.37517831,2003.2,2003.1,7.43644048]
[1742713549687,1.37517831,2003.2,2003.1,7.43643384]
[1742713550283,1.37517831,2003.2,2003.1,6.91382461]
[1742713550587,1.37517831,2003.2,2003.1,7.43641935]
[1742713557792,1.37517831,2003.2,2003.1,7.43657936]
[1742713558183,1.37517831,2003.2,2003.1,4.22877936]
[1742713558593,1.37517831,2003.2,2003.1,7.43657936]
[1742713559295,1.37517831,2003.2,2003.1,7.43658341]
[1742713564887,1.37517831,2003.2,2003.1,7.43650768]
[1742713565088,1.37517831,2003.2,2003.1,6.91382461]
[1742713565297,1.37517831,2003.2,2003.1,7.43650294]
[1742713566699,1.37517831,2003.2,2003.1,6.91382461]
[1742713566889,1.37517831,2003.2,2003.1,7.43650481]
[1742713571302,1.37517831,2003.2,2003.1,7.43662583]
[1742713574799,1.37517831,2003.2,2003.1,7.43664057]
[1742713575199,1.37517831,2003.2,2003.1,4.22884057]
[1742713575494,1.37517831,2003.2,2003.1,7.43664057]
[1742713577299,1.37517831,2003.2,2003.1,7.43664488]
[1742713578794,1.37517831,2003.2,2003.1,7.43660861]
[1742713580603,1.37517831,2003.2,2003.1,7.4366123]
[1742713582401,1.37517831,2003.2,2003.1,7.43661635]
[1742713590114,1.37517831,2003.2,2003.1,4.22881635]
[1742713590614,1.37517831,2003.2,2003.1,7.43661635]
[1742713597917,1.37517831,2003.2,2003.1,7.43589852]
[1742713602024,1.37517831,2003.2,2003.1,6.91382461]
[1742713602221,1.37517831,2003.2,2003.1,7.43578263]
[1742713603426,1.37517831,2003.2,2003.1,7.43580563]
[1742713604223,1.37517831,2003.2,2003.1,7.43580256]
[1742713606118,0.6924,2003.5,2003.4,0.99848]
[1742713606328,0.6924,2003.5,2003.4,1.52045153]
[1742713606532,0.6567,2003.6,2003.5,0.99843]
[1742713606826,0.6567,2003.6,2003.5,3.50000153]
[1742713607128,0.6567,2003.6,2003.5,4.13470153]
[1742713608236,0.6567,2003.6,2003.5,4.13430358]
[1742713610230,0.6567,2003.6,2003.5,4.13405897]
[1742713610930,1.2843,2003.7,2003.6,0.99838]
[1742713611232,0.99808,2004.2,2004.1,0.99811]
[1742713611536,3.71018,2004.2,2004.1,0.99811]
[1742713611928,2.7121,2004.2,2004.1,0.99811]
[1742713614831,2.7121,2004.2,2003.8,5.70349]
[1742713615133,2.25865,2004.1,2004.0,0.99815]
[1742713616731,1.2605,2004.1,2004.0,0.99815]
[1742713619838,1.2605,2004.1,2004.0,2.31165]
[1742713624935,1.2605,2004.1,2004.0,1.3135]
[1742713625240,1.2605,2004.1,2004.0,2.31168]
[1742713626333,3.2078,2004.3,2004.2,0.99808]
[1742713626637,4.5473,2004.3,2004.2,0.99808]
[1742713626840,1.3395,2004.3,2004.2,0.99808]
[1742713627034,1.3395,2004.3,2004.2,2.34888]
[1742713627934,1.3395,2004.3,2004.2,3.66478]
[1742713628441,0.00747831,2004.4,2004.3,0.99803]
[1742713628643,0.00747831,2004.4,2004.3,2.31393]
[1742713631037,4.45525304,2004.8,2004.7,0.99783]
[1742713631458,4.45525304,2004.8,2004.4,4.6003]
[1742713631654,4.45525304,2004.8,2004.7,0.99783]
[1742713636545,0.99778,2004.8,2004.7,0.99783]
[1742713636752,2.32297,2004.9,2004.8,0.99778]
[1742713637447,0.9978,2004.8,2004.7,0.9978]
[1742713637642,2.32296,2004.9,2004.8,0.99778]
[1742713637849,0.99778,2004.8,2004.7,0.99781]
[1742713639047,0.99778,2004.8,2004.6,1.2626]
[1742713639450,0.99778,2004.8,2004.7,0.99783]
[1742713642858,0.99783,2004.7,2004.6,2.26044]
[1742713644156,0.99782,2004.8,2004.7,0.99782]
[1742713644352,1.3252,2004.9,2004.6,1.2626]
[1742713644553,0.9978,2004.8,2004.7,0.99781]
[1742713646055,2.32297,2004.9,2004.8,0.99778]
[1742713646245,0.00747831,2005.0,2004.9,0.99773]
[1742713646446,0.99774,2004.9,2004.8,0.99776]
[1742713648145,2.31444,2004.9,2004.8,0.99776]
[1742713648349,1.3167,2004.9,2004.8,0.99776]
[1742713649859,0.00747831,2005.0,2004.9,0.99773]
[1742713650049,1.32417831,2005.0,2004.9,0.99773]
[1742713650865,2.32185831,2005.0,2004.8,2.30063]
[1742713651156,3.01335831,2005.0,2004.8,2.30063]
[1742713651353,1.3627,2004.9,2004.8,2.30063]
[1742713654557,1.3627,2004.9,2004.8,1.3029]
[1742713654751,1.3627,2004.9,2004.5,0.00747831]
[1742713654952,0.6989,2004.8,2004.5,0.00747831]
[1742713655147,1.3446,2004.7,2004.6,0.99784]
[1742713655959,2.0142,2004.7,2004.6,0.99784]
[1742713657448,2.0142,2004.7,2004.6,1.51818023]
[1742713657754,2.0142,2004.7,2004.6,0.99784]
[1742713657951,2.0142,2004.7,2004.6,2.38344]
[1742713658151,2.0142,2004.7,2004.6,2.90389545]
[1742713659958,2.0142,2004.7,2004.6,2.90400244]
[1742713660350,2.0142,2004.7,2004.6,2.38344]
[1742713660555,2.0142,2004.7,2004.6,2.90403859]
[1742713663455,2.0142,2004.7,2004.6,2.90408992]
[1742713664272,2.0142,2004.7,2004.6,2.90408756]
[1742713666372,2.0142,2004.7,2004.6,2.90397821]
[1742713666760,2.0142,2004.7,2004.6,2.90397646]
[1742713668369,2.0142,2004.7,2004.6,2.9040237]
[1742713670165,0.99788,2004.6,2004.5,0.00747831]
[1742713670372,1.3041,2004.6,2004.5,2.31140831]
[1742713670675,0.6696,2004.7,2004.6,0.99788]
[1742713670875,0.6696,2004.7,2004.6,2.30388]
[1742713672078,1.9919,2004.7,2004.6,2.30388]
[1742713672478,2.98973,2004.7,2004.6,1.306]
[1742713673577,1.9919,2004.7,2004.6,2.30388]
[1742713674476,1.9919,2004.7,2004.6,1.306]
[1742713674976,1.9919,2004.7,2004.6,2.30388]
[1742713682181,1.9919,2004.7,2004.6,2.82456306]
[1742713683787,1.9919,2004.7,2004.6,2.82464241]
[1742713684292,1.9919,2004.7,2004.6,2.82464499]
[1742713685689,1.9919,2004.7,2004.6,2.82487428]
[1742713685986,3.21527831,2005.0,2004.6,5.03479428]
[1742713686189,1.3675,2004.9,2004.8,0.99778]
[1742713686489,1.3675,2004.9,2004.8,2.36428]
[1742713686687,3.21527831,2005.0,2004.9,0.99773]
[1742713686889,3.21527831,2005.0,2004.9,5.50423]
[1742713688389,4.56247831,2005.0,2004.9,5.50423]
[1742713688982,1.35467831,2005.0,2004.9,5.50423]
[1742713691088,2.03297831,2005.0,2004.9,5.50423]
[1742713692592,3.03065831,2005.0,2004.9,4.5065]
[1742713692788,3.03065831,2005.0,2004.9,1.3665]
[1742713693491,3.03065831,2005.0,2004.9,2.36423]
[1742713694387,2.03297831,2005.0,2004.9,2.36423]
[1742713694793,3.03065831,2005.0,2004.9,2.36423]
[1742713694993,0.00747831,2005.0,2004.9,2.36423]
[1742713695395,1.34867831,2005.0,2004.9,2.36423]
[1742713695693,1.34867831,2005.0,2004.9,2.88459322]
[1742713695996,1.34867831,2005.0,2004.9,2.8846001]
[1742713696296,0.00747831,2005.0,2004.9,2.8846001]
[1742713697295,3.139,2005.8,2004.9,5.0946701]
[1742713697489,1.2693,2005.4,2005.3,0.99753]
[1742713697689,1.2693,2005.4,2005.3,4.13653]
[1742713698592,2.26678,2005.4,2005.3,3.139]
[1742713699093,2.26678,2005.4,2005.3,1.3474]
[1742713702899,0.99753,2005.3,2005.2,4.13658]
[1742713703096,3.73263,2005.3,2005.2,5.43848]
[1742713703595,3.73263,2005.3,2005.2,1.3019]
[1742713704501,3.73263,2005.3,2005.2,2.29948]
[1742713705000,3.73263,2005.3,2005.2,1.3019]
[1742713705989,1.3951,2005.3,2005.2,2.29948]
[1742713706189,6.3468,2005.6,2005.2,2.29948]
[1742713706190,1.2867,2005.5,2005.3,0.99751]
[1742713706400,2.5849,2005.5,2005.4,0.99748]
[1742713706593,2.5849,2005.5,2005.4,1.68028]
[1742713706793,2.5849,2005.5,2005.4,3.02328]
[1742713707398,3.58233,2005.5,2005.4,2.0258]
[1742713707594,3.58233,2005.5,2005.4,1.343]
[1742713711304,0.99753,2005.3,2005.2,0.99754]
[1742713711508,2.33111,2005.4,2005.2,4.14154]
[1742713711705,1.3647,2005.3,2005.2,4.14154]
[1742713712901,2.36223,2005.3,2005.2,4.14154]
[1742713713510,2.36223,2005.3,2005.2,3.144]
[1742713723514,0.99758,2005.2,2005.1,3.2078]
[1742713723716,3.02288,2005.2,2005.1,3.66104631]
[1742713724011,3.67878,2005.2,2005.0,1.65094]
[1742713724208,1.3792,2005.1,2005.0,1.65094]
[1742713724516,1.3792,2005.1,2005.0,2.17126449]
[1742713725016,1.3792,2005.1,2005.0,2.1712645]
[1742713726114,1.3792,2005.1,2005.0,2.17137671]
[1742713727904,1.3792,2005.1,2005.0,2.86847671]
[1742713728110,1.3792,2005.1,2005.0,4.22853945]
[1742713730020,1.3792,2005.1,2005.0,4.22856079]
[1742713730720,1.3792,2005.1,2005.0,4.22853826]
[1742713732020,1.3792,2005.1,2005.0,3.70798]
[1742713732220,1.3792,2005.1,2005.0,4.22852618]
[1742713736618,1.3792,2005.1,2005.0,4.22842202]
[1742713738226,1.3792,2005.1,2005.0,4.22847085]
[1742713740127,1.3792,2005.1,2005.0,4.22851787]
[1742713740722,1.302,2005.2,2005.0,3.23083787]
[1742713740924,2.5979,2005.2,2005.1,2.81836787]
[1742713741231,0.99746,2005.5,2005.3,0.99753]
[1742713741426,4.42076924,2005.6,2005.2,1.9697]
[1742713741623,1.2959,2005.5,2005.4,0.99748]
[1742713741922,1.2959,2005.5,2005.4,2.29768]
[1742713744632,9.1518,2005.7,2005.6,0.99738]
[1742713745427,9.1518,2005.7,2005.6,3.04158]
[1742713745933,5.944,2005.7,2005.6,3.04158]
[1742713748922,7.2144,2005.7,2005.6,3.04158]
[1742713749124,1.2704,2005.7,2005.6,3.04158]
[1742713749436,2.26773,2005.7,2005.6,3.04158]
[1742713750134,1.2704,2005.7,2005.6,3.04158]
[1742713751143,2.26773,2005.7,2005.6,2.0442]
[1742713751734,2.26773,2005.7,2005.6,3.04158]
[1742713752837,1.2704,2005.7,2005.6,3.04158]
[1742713753129,2.26773,2005.7,2005.6,3.04158]
[1742713753538,2.26773,2005.7,2005.6,2.35668]
[1742713756547,1.2704,2005.7,2005.6,2.35668]
[1742713757447,1.3455,2005.9,2005.7,0.99731]
[1742713757647,2.37978,2005.8,2005.7,2.38281]
[1742713757847,2.37978,2005.8,2005.7,1.3855]
[1742713758047,2.37978,2005.8,2005.7,2.38283]
[1742713759251,1.3825,2005.8,2005.7,2.38283]
[1742713759845,2.37978,2005.8,2005.7,2.38283]
[1742713760550,1.3825,2005.8,2005.7,2.38283]
[1742713760847,0.99719,2006.0,2005.8,0.99728]
[1742713760848,0.99718,2006.0,2005.8,0.99728]
[1742713761048,2.35788,2006.0,2005.8,0.99728]
[1742713761445,2.35793,2005.9,2005.8,0.99728]
[1742713763751,2.35793,2005.9,2005.7,5.52079]
[1742713763952,1.3152,2005.8,2005.7,5.52079]
[1742713764449,2.31248,2005.8,2005.7,5.52079]
[1742713764650,2.99218,2005.8,2005.7,5.52079]
[1742713765549,2.99218,2005.8,2005.7,4.13529]
[1742713765754,0.99733,2005.7,2005.6,0.00747831]
[1742713765951,3.00853,2005.7,2005.6,3.14547831]
[1742713766450,3.00853,2005.7,2005.6,0.00747831]
[1742713768059,3.00853,2005.7,2005.6,1.36477831]
[1742713776651,3.00853,2005.7,2005.6,0.00747831]
[1742713783963,2.31253,2005.7,2005.6,1.35427831]
[1742713784154,2.31253,2005.7,2005.6,2.66837831]
[1742713786655,2.31253,2005.7,2005.6,2.01007831]
[1742713789058,2.31253,2005.7,2005.6,1.32157831]
[1742713804570,2.31253,2005.7,2005.6,1.98187831]
[1742713815437,8.02279,2005.8,2005.6,1.98187831]
[1742713815617,2.36218,2005.8,2005.7,1.9781]
[1742713815782,0.99728,2005.8,2005.7,1.9781]
[1742713817079,0.99726,2005.9,2005.8,0.99728]
[1742713817279,0.99726,2005.9,2005.8,2.29108]
[1742713817480,0.99726,2005.9,2005.8,2.93218]
[1742713819887,0.99726,2005.9,2005.8,1.9349]
[1742713820382,0.99726,2005.9,2005.8,2.93218]
[1742713820884,0.99726,2005.9,2005.8,1.9349]
[1742713824787,0.99726,2005.9,2005.8,2.93218]
[1742713825486,0.99726,2005.9,2005.8,1.9349]
[1742713825784,0.99726,2005.9,2005.8,2.93218]
[1742713827489,0.99726,2005.9,2005.8,1.9349]
[1742713828581,0.99726,2005.9,2005.8,2.93218]
[1742713828780,0.99726,2005.9,2005.8,1.9349]
[1742713829785,0.99726,2005.9,2005.8,2.93218]
[1742713831186,0.99726,2005.9,2005.8,1.9349]
[1742713835884,1.63736,2005.9,2005.8,1.9349]
[1742713861902,0.99733,2005.7,2005.6,3.21527831]
[1742713862101,0.99733,2005.7,2005.6,0.52785771]
[1742713862304,0.99733,2005.7,2005.6,0.52795641]
[1742713862498,3.00083,2005.7,2005.6,0.00747831]
[1742713865112,3.00083,2005.7,2005.6,1.30197831]
[1742713882030,3.00083,2005.7,2005.6,2.29935831]
[1742713882227,3.00083,2005.7,2005.6,1.30197831]
[1742713885824,2.31093,2005.7,2005.6,2.81926749]
[1742713886023,2.31093,2005.7,2005.6,3.49696749]
[1742713886226,2.31093,2005.7,2005.6,3.4969511]
[1742713886726,2.31093,2005.7,2005.6,3.49699214]
[1742713888231,2.31093,2005.7,2005.6,3.49701702]
[1742713890133,2.31093,2005.7,2005.6,2.97705831]
[1742713890429,2.31093,2005.7,2005.6,3.49710281]
[1742713892124,2.31093,2005.7,2005.6,3.49715665]
[1742713894236,2.31093,2005.7,2005.6,3.4971558]
[1742713894627,2.31093,2005.7,2005.6,2.97705831]
[1742713894834,2.31093,2005.7,2005.6,3.49714849]
[1742713895532,3.00293,2005.7,2005.6,3.49714849]
[1742713896336,3.00293,2005.7,2005.6,3.49715912]
[1742713898131,3.00293,2005.7,2005.6,2.97705831]
[1742713898335,3.00293,2005.7,2005.6,3.49688711]
[1742713902133,3.00293,2005.7,2005.6,3.49686528]
[1742713902735,3.00293,2005.7,2005.6,3.4968751]
[1742713906048,2.0056,2005.7,2005.6,3.4968751]
[1742713907045,1.3136,2005.7,2005.6,3.4968751]
[1742713908143,1.3136,2005.7,2005.6,2.97705831]
[1742713908443,1.3136,2005.7,2005.6,3.49690981]
[1742713910246,1.3136,2005.7,2005.6,3.4968921]
[1742713914254,1.3136,2005.7,2005.6,3.49686524]
[1742713914862,1.3136,2005.7,2005.6,3.49685669]
[1742713915860,1.64127,2005.9,2005.6,3.49685669]
[1742713916163,1.3571,2005.8,2005.7,2.85680398]
[1742713916461,1.3571,2005.8,2005.7,3.54430171]
[1742713918363,1.3571,2005.8,2005.7,3.54426324]
[1742713921570,1.3571,2005.8,2005.7,3.5441675]
[1742713924277,2.35438,2005.8,2005.7,3.5441675]
[1742713924461,1.3571,2005.8,2005.7,3.5441675]
[1742713925674,1.3571,2005.8,2005.7,3.54424607]
[1742713927671,1.3571,2005.8,2005.7,3.54422417]
[1742713930068,1.3571,2005.8,2005.7,3.54409493]
[1742713931078,1.3571,2005.8,2005.7,3.54409338]
[1742713933379,2.35438,2005.8,2005.7,3.54409338]
[1742713933583,2.35438,2005.8,2005.7,3.54405761]
[1742713934682,1.3571,2005.8,2005.7,3.54405761]
[1742713934982,2.35438,2005.8,2005.7,3.54405761]
[1742713935279,1.3571,2005.8,2005.7,3.54405761]
[1742713935682,2.35438,2005.8,2005.7,3.54409477]
[1742713937474,2.35438,2005.8,2005.7,3.54413356]
[1742713938082,2.35438,2005.8,2005.7,3.54412905]
[1742713939677,2.35438,2005.8,2005.7,3.54410375]
[1742713943488,2.35438,2005.8,2005.7,3.5441704]
[1742713944586,2.35438,2005.8,2005.7,1.5169704]
[1742713944789,3.02558,2005.8,2005.7,1.5169804]
[1742713945393,3.02558,2005.8,2005.7,0.99733]
[1742713945696,3.02558,2005.8,2005.7,1.51707256]
[1742713945997,3.02558,2005.8,2005.7,0.51974256]
[1742713946296,3.02558,2005.8,2005.7,1.51707256]
[1742713947093,3.02558,2005.8,2005.6,5.48652831]
[1742713947293,1.66848,2005.8,2005.7,0.99733]
[1742713947496,1.66848,2005.8,2005.7,1.51706124]
[1742713947695,1.66848,2005.8,2005.7,2.31663]
[1742713947993,1.66848,2005.8,2005.7,2.83635481]
[1742713948583,1.66848,2005.8,2005.7,1.83902481]
[1742713948797,1.66848,2005.8,2005.7,1.3193]
[1742713949491,1.66848,2005.8,2005.7,2.83633192]
[1742713953691,1.66848,2005.8,2005.7,2.83630684]
[1742713953999,1.66848,2005.8,2005.7,2.83630701]
[1742713955702,1.66848,2005.8,2005.7,2.83630232]
[1742713957603,1.66848,2005.8,2005.7,2.83629997]
[1742713958999,1.66848,2005.8,2005.7,1.83896997]
[1742713959398,1.66848,2005.8,2005.7,2.83629997]
[1742713959604,1.66848,2005.8,2005.7,2.83629908]
[1742713960006,1.66848,2005.8,2005.7,1.83896969]
[1742713960703,2.30328,2005.8,2005.7,1.83896969]
[1742713961689,2.30328,2005.8,2005.7,1.83896728]
[1742713962304,2.30328,2005.8,2005.7,2.83629728]
[1742713962501,2.30328,2005.8,2005.7,1.83896728]
[1742713965806,2.30328,2005.8,2005.7,1.83897853]
[1742713967609,2.30328,2005.8,2005.7,1.8390014]
[1742713967809,2.30328,2005.8,2005.7,1.83900141]
[1742713969607,2.30328,2005.8,2005.7,1.3193]
[1742713970603,2.30328,2005.8,2005.7,1.83902355]
[1742713971805,2.30328,2005.8,2005.7,1.83903794]
[1742713972110,2.30328,2005.8,2005.7,2.83636794]
[1742713972308,2.30328,2005.8,2005.7,2.83638632]
[1742713974003,2.30328,2005.8,2005.7,1.83905632]
[1742713975914,2.30328,2005.8,2005.7,1.83911281]
[1742713977712,2.30328,2005.8,2005.7,1.83912178]
[1742713978014,2.30328,2005.8,2005.7,1.3193]
[1742713987618,2.30328,2005.8,2005.7,1.83907456]
[1742713988516,2.30328,2005.8,2005.7,2.52937456]
[1742713989418,2.30328,2005.8,2005.7,2.52936733]
[1742713989820,2.30328,2005.8,2005.7,3.52669733]
[1742713993121,2.30328,2005.8,2005.7,3.00693]
[1742713993434,2.30328,2005.8,2005.7,2.52937965]
[1742713993629,2.30328,2005.8,2005.7,2.52938277]
[1742713993830,2.30328,2005.8,2005.7,3.52671277]
[1742713994722,1.29,2005.9,2005.7,2.52938277]
[1742713994929,2.28723,2005.9,2005.8,1.3979]
[1742713997119,1.29,2005.9,2005.8,3.04468]
[1742713997732,2.28723,2005.9,2005.8,3.56432618]
[1742713998325,2.28723,2005.9,2005.8,3.04468]
[1742713998536,1.29,2005.9,2005.8,3.04468]
[1742713998832,2.28723,2005.9,2005.8,3.04468]
[1742713999938,2.28723,2005.9,2005.8,3.56419698]
[1742714000444,2.28723,2005.9,2005.8,3.04468]
[1742714007044,2.28723,2005.9,2005.8,3.56399427]
[1742714009544,2.28723,2005.9,2005.8,3.56390845]
[1742714010645,1.29,2005.9,2005.8,3.56390845]
[1742714011450,2.28723,2005.9,2005.8,3.04468]
[1742714011654,2.28723,2005.9,2005.8,3.56385563]
[1742714012056,2.28723,2005.9,2005.8,3.56386896]
[1742714012258,1.29,2005.9,2005.8,3.56386896]
[1742714012457,1.304,2006.1,2006.0,0.99717]
[1742714012458,0.99716,2006.1,2006.0,0.99717]
[1742714012955,0.99718,2006.0,2005.9,4.13321]
[1742714013159,0.99718,2006.0,2005.9,4.65229001]
[1742714013654,2.33728,2006.0,2005.9,5.95573647]
[1742714014355,1.3401,2006.0,2005.9,5.95573647]
[1742714016352,2.33728,2006.0,2005.9,5.95573647]
[1742714017757,1.3401,2006.0,2005.9,5.95558621]
[1742714018362,2.33728,2006.0,2005.9,5.9555867]
[1742714018559,1.3401,2006.0,2005.9,5.9555867]
[1742714019858,1.3401,2006.0,2005.9,5.95594188]
[1742714023950,1.3401,2006.0,2005.9,5.95601009]
[1742714024454,1.3401,2006.0,2005.9,5.95603599]
[1742714024756,1.3401,2006.0,2005.9,5.95603995]
[1742714026067,1.3401,2006.0,2005.9,5.95606913]
[1742714028150,1.3401,2006.0,2005.9,5.95610929]
[1742714030065,1.3401,2006.0,2005.9,5.43671]
[1742714030266,1.3401,2006.0,2005.9,5.95617542]
[1742714030568,6.78072224,2006.2,2006.1,0.99713]
[1742714030766,8.09742224,2006.2,2006.1,0.99713]
[1742714031269,8.09742224,2006.2,2006.1,2.37363]
[1742714034363,7.10033224,2006.2,2006.1,2.37363]
[1742714034561,8.09741224,2006.2,2006.1,2.37363]
[1742714037469,1.3167,2006.2,2006.1,2.37363]
[1742714041372,2.31378,2006.2,2006.1,2.37363]
[1742714041978,1.3167,2006.2,2006.1,2.37363]
[1742714043775,2.31378,2006.2,2006.1,2.37363]
[1742714043974,2.31378,2006.2,2006.1,1.3765]
[1742714044974,2.31378,2006.2,2006.1,2.37363]
[1742714057378,2.31378,2006.2,2006.1,2.89373104]
[1742714058589,2.31378,2006.2,2006.1,2.89379793]
[1742714062795,2.31378,2006.2,2006.1,2.89389656]
[1742714064693,2.31378,2006.2,2006.1,2.37363]
[1742714064992,2.31378,2006.2,2006.1,2.89392817]
[1742714066887,2.31378,2006.2,2006.1,2.89392941]
[1742714067388,2.31378,2006.2,2006.1,1.89679854]
[1742714068889,2.31378,2006.2,2006.1,1.89680394]
[1742714069198,2.31378,2006.2,2006.1,2.89393394]
[1742714072997,2.31378,2006.2,2006.1,2.89393136]
[1742714073494,2.31378,2006.2,2006.1,2.8939331]
[1742714073688,2.31378,2006.2,2006.1,1.8968031]
[1742714074893,2.31378,2006.2,2006.1,1.89681288]
[1742714075096,2.31378,2006.2,2006.1,1.89681254]
[1742714076087,2.31378,2006.2,2006.1,2.89394254]
[1742714076287,2.31378,2006.2,2006.1,1.89681254]
[1742714076891,2.31378,2006.2,2006.1,2.89394254]
[1742714077398,2.31378,2006.2,2006.1,1.3765]
[1742714078490,2.31378,2006.2,2006.1,2.37363]
[1742714078691,2.31378,2006.2,2006.1,1.3765]
[1742714082698,2.31378,2006.2,2006.1,2.37363]
[1742714082895,2.31378,2006.2,2006.1,1.3765]